fUST/lending_fUST_20250527
["ID","MTS","AMOUNT","RATE_DAILY","PERIOD"]
[362445749,1748296249738,-430.0,0.00024657,3]
[362445750,1748296249748,-594.14,0.00024657,3]
[362445751,1748296249758,-430.0,0.00024657,3]
[362445752,1748296249767,-594.14,0.00024657,3]
[362445753,1748296249777,-430.0,0.00024657,3]
[362445754,1748296249786,-594.14,0.00024657,3]
[362445755,1748296249796,-480.11971891,0.00024657,3]
[362445756,1748296249806,-594.14,0.00024657,3]
[362445757,1748296249815,-430.0,0.00024657,3]
[362445758,1748296249826,-594.14,0.00024657,3]
[362445759,1748296249835,-430.0,0.00024657,3]
[362445760,1748296249845,-430.0,0.00024657,3]
[362445761,1748296249855,-594.14,0.00024657,3]
[362445762,1748296249864,-430.0,0.00024657,3]
[362445763,1748296249873,-594.14,0.00024657,3]
[362445764,1748296249883,-430.0,0.00024657,3]
[362445765,1748296249895,-430.0,0.00024657,3]
[362445766,1748296249905,-430.0,0.00024657,3]
[362445767,1748296249914,-594.22066158,0.00024657,3]
[362445768,1748296249924,-430.0,0.00024657,3]
[362445769,1748296249935,-430.0,0.00024657,3]
[362445770,1748296249945,-17.04555223,0.00024657,3]
[362445771,1748296250043,-412.95444777,0.00024657,3]
[362445772,1748296250054,-430.0,0.00024657,3]
[362445773,1748296250064,-430.0,0.00024657,3]
[362445774,1748296250075,-430.0,0.00024657,3]
[362445775,1748296250086,-430.0,0.00024657,3]
[362445776,1748296250096,-430.0,0.00024657,3]
[362445777,1748296250107,-334.67983336,0.00024657,3]
[362445778,1748296250912,-500.0,0.00022919,2]
[362445779,1748296250922,-500.0,0.00022919,2]
[362445780,1748296250932,-590.27622606,0.00022919,2]
[362445781,1748296250944,-500.0,0.00022919,2]
[362445782,1748296250953,-500.0,0.00022919,2]
[362445783,1748296250965,-500.0,0.00022919,2]
[362445784,1748296250976,-412.23391462,0.00022919,2]
[362445785,1748296250987,-500.0,0.00022919,2]
[362445786,1748296250997,-582.65372841,0.00022919,2]
[362445787,1748296251006,-408.08347866,0.00022919,2]
[362445788,1748296251017,-500.0,0.00022919,2]
[362445789,1748296251027,-500.0,0.00022919,2]
[362445790,1748296251037,-500.0,0.00022919,2]
[362445791,1748296251046,-500.0,0.00022919,2]
[362445792,1748296251057,-383.81317076,0.00022919,2]
[362445793,1748296251067,-500.0,0.00022919,2]
[362445794,1748296251077,-500.0,0.00022919,2]
[362445795,1748296251086,-500.0,0.00022919,2]
[362445796,1748296251097,-500.0,0.00022919,2]
[362445797,1748296251107,-269.64367321,0.00022919,2]
[362445798,1748296251118,-230.35632679,0.00022919,2]
[362445799,1748296251128,-500.0,0.00022919,2]
[362445800,1748296251138,-500.0,0.00022919,2]
[362445801,1748296251148,-500.0,0.00022919,2]
[362445802,1748296251157,-500.0,0.00022919,2]
[362445803,1748296251168,-500.0,0.00022919,2]
[362445804,1748296251177,-500.0,0.00022919,2]
[362445805,1748296251187,-500.0,0.00022919,2]
[362445806,1748296251197,-500.0,0.00022919,2]
[362445807,1748296251207,-500.0,0.00022919,2]
[362445808,1748296251216,-500.0,0.00022919,2]
[362445809,1748296251225,-500.0,0.00022919,2]
[362445810,1748296251235,-475.04560474,0.00022919,2]
[362445811,1748296251245,-500.0,0.00022919,2]
[362445812,1748296251254,-500.0,0.00022919,2]
[362445813,1748296251263,-500.0,0.00022919,2]
[362445814,1748296251272,-500.0,0.00022919,2]
[362445815,1748296251282,-500.0,0.00022919,2]
[362445816,1748296251291,-500.0,0.00022919,2]
[362445817,1748296251300,-430.81748579,0.00022919,2]
[362445818,1748296251311,-69.18251421,0.00022919,2]
[362445819,1748296251321,-500.0,0.00022919,2]
[362445820,1748296251330,-368.8470629,0.00022919,2]
[362445821,1748296251341,-131.1529371,0.00022919,2]
[362445822,1748296251351,-270.0070629,0.00022919,2]
[362445823,1748296251364,-229.9929371,0.00022919,2]
[362445824,1748296251376,-500.0,0.00022919,2]
[362445825,1748296251387,-500.0,0.00022919,2]
[362445826,1748296251397,-500.0,0.00022919,2]
[362445827,1748296251407,-500.0,0.00022919,2]
[362445828,1748296251418,-500.0,0.00023319,2]
[362445829,1748296251430,-500.0,0.00023319,2]
[362445830,1748296251441,-500.0,0.00023319,2]
[362445831,1748296251452,-500.0,0.00023319,2]
[362445832,1748296251473,-500.0,0.00023319,2]
[362445833,1748296251482,-88.89616293,0.00023319,2]
[362445834,1748296251493,-387.1107681,0.00023319,2]
[362445835,1748296251505,-95.32016664,0.00024657,3]
[362445836,1748296251514,-430.0,0.00024657,3]
[362445837,1748296251524,-430.0,0.00024657,3]
[362445838,1748296251533,-470.0,0.00024657,3]
[362445839,1748296251542,-430.0,0.00024657,3]
[362445840,1748296251553,-430.0,0.00024657,3]
[362445841,1748296251564,-205.43486957,0.00024657,3]
[362445842,1748296251574,-430.0,0.00024657,3]
[362445843,1748296251586,-430.0,0.00024657,3]
[362445844,1748296251595,-375.2185052,0.00024657,3]
[362445845,1748296251605,-550.0,0.00024657,3]
[362445846,1748296251616,-430.0,0.00024657,3]
[362445847,1748296251627,-430.0,0.00024657,3]
[362445848,1748296251638,-430.0,0.00024657,3]
[362445849,1748296251650,-430.0,0.00024657,3]
[362445850,1748296251659,-430.0,0.00024657,3]
[362445851,1748296251669,-430.0,0.00024657,3]
[362445852,1748296251679,-430.0,0.00024657,3]
[362445853,1748296251688,-430.0,0.00024657,3]
[362445854,1748296251697,-430.0,0.00024657,3]
[362445855,1748296251707,-430.0,0.00024657,3]
[362445856,1748296251716,-598.1,0.00024657,3]
[362445857,1748296251727,-430.0,0.00024657,3]
[362445858,1748296251736,-353.39095959,0.00024657,3]
[362445859,1748296251750,-76.60904041,0.00024657,3]
[362445860,1748296251759,-430.0,0.00024657,3]
[362445861,1748296251769,-598.1,0.00024657,3]
[362445862,1748296251778,-430.0,0.00024657,3]
[362445863,1748296251787,-3.30365579,0.00024657,3]
[362445864,1748296251876,-45.35248892,0.00024657,3]
[362445865,1748296251887,-381.34385529,0.00024657,3]
[362445866,1748296251901,-430.0,0.00024657,3]
[362445867,1748296251910,-430.0,0.00024657,3]
[362445868,1748296251919,-62.07027422,0.00024657,3]
[362445869,1748296251931,-536.02972578,0.00024657,3]
[362445870,1748296251941,-430.0,0.00024657,3]
[362445871,1748296251950,-430.0,0.00024657,3]
[362445872,1748296251960,-70.15988568,0.00024657,3]
[362445873,1748296251972,-359.84011432,0.00024657,3]
[362445874,1748296251981,-430.0,0.00024657,3]
[362445875,1748296251991,-430.0,0.00024657,3]
[362445876,1748296252000,-598.1,0.00024657,3]
[362445877,1748296252010,-130.52061305,0.00024657,3]
[362445878,1748296252022,-299.47938695,0.00024657,3]
[362445879,1748296252032,-40.88561305,0.00024657,3]
[362445880,1748296252044,-389.11438695,0.00024657,3]
[362445881,1748296252053,-430.0,0.00024657,3]
[362445882,1748296252063,-114.1303653,0.00024657,3]
[362445883,1748296252163,-315.8696347,0.00024657,3]
[362445884,1748296252173,-598.1,0.00024657,3]
[362445885,1748296252182,-430.0,0.00024657,3]
[362445886,1748296252191,-430.0,0.00024657,3]
[362445887,1748296252203,-430.0,0.00024657,3]
[362445888,1748296252212,-232.56324985,0.00024657,3]
[362445889,1748296252222,-430.0,0.00024657,3]
[362445890,1748296252231,-598.1,0.00024657,3]
[362445891,1748296252240,-430.0,0.00024657,3]
[362445892,1748296252253,-430.0,0.00024657,3]
[362445893,1748296252263,-598.1,0.00024657,3]
[362445894,1748296252272,-430.0,0.00024657,3]
[362445895,1748296252281,-430.0,0.00024657,3]
[362445896,1748296252290,-430.0,0.00024657,3]
[362445897,1748296252299,-430.0,0.00024657,3]
[362445898,1748296252313,-598.1,0.00024657,3]
[362445899,1748296252323,-430.0,0.00024657,3]
[362445900,1748296252332,-234.70124101,0.00024657,3]
[362445901,1748296252343,-430.0,0.00024657,3]
[362445902,1748296252352,-158.9601265,0.00024657,3]
[362445903,1748296252365,-271.0398735,0.00024657,3]
[362445904,1748296252375,-141.64641877,0.00024657,3]
[362445905,1748296252386,-456.45358123,0.00024657,3]
[362445906,1748296252396,-430.0,0.00024657,3]
[362445907,1748296252406,-430.0,0.00024657,3]
[362445908,1748296252415,-332.91363559,0.00024657,3]
[362445909,1748296252427,-97.08636441,0.00024657,3]
[362445910,1748296252437,-430.0,0.00024657,3]
[362445911,1748296252446,-430.0,0.00024657,3]
[362445912,1748296252455,-598.1,0.00024657,3]
[362445913,1748296252465,-430.0,0.00024657,3]
[362445914,1748296252475,-430.0,0.00024657,3]
[362445915,1748296252484,-297.31611439,0.00024657,3]
[362445916,1748296252500,-132.68388561,0.00024657,3]
[362445917,1748296252510,-506.4421479,0.00024657,3]
[362445918,1748296252521,-91.6578521,0.00024657,3]
[362445919,1748296252530,-530.0,0.00024657,3]
[362445920,1748296252539,-430.0,0.00024657,3]
[362445921,1748296252549,-430.0,0.00024657,3]
[362445922,1748296252559,-598.1,0.00024657,3]
[362445923,1748296252568,-430.0,0.00024657,3]
[362445924,1748296252578,-430.0,0.00024657,3]
[362445925,1748296252588,-598.1,0.00024657,3]
[362445926,1748296252597,-430.0,0.00024657,3]
[362445927,1748296252606,-236.17711206,0.00024657,3]
[362445928,1748296252617,-430.0,0.00024657,3]
[362445929,1748296252627,-430.0,0.00024657,3]
[362445930,1748296252637,-598.1,0.00024657,3]
[362445931,1748296252647,-430.0,0.00024657,3]
[362445932,1748296252659,-430.0,0.00024657,3]
[362445933,1748296252670,-430.0,0.00024657,3]
[362445934,1748296252681,-430.0,0.00024657,3]
[362445935,1748296252690,-598.1,0.00024657,3]
[362445936,1748296252700,-430.0,0.00024657,3]
[362445937,1748296252709,-430.0,0.00024657,3]
[362445938,1748296252719,-430.0,0.00024657,3]
[362445939,1748296252729,-254.78,0.00024657,3]
[362445940,1748296252739,-430.0,0.00024657,3]
[362445941,1748296252748,-430.0,0.00024657,3]
[362445942,1748296252758,-598.1,0.00024657,3]
[362445943,1748296252768,-430.0,0.00024657,3]
[362445944,1748296252777,-542.4125288,0.00024657,3]
[362445945,1748296252787,-430.0,0.00024657,3]
[362445946,1748296252797,-225.84228464,0.00024657,3]
[362445947,1748296252813,-150.58630686,0.00024657,3]
[362445948,1748296252823,-430.0,0.00024657,3]
[362445949,1748296252832,-598.1,0.00024657,3]
[362445950,1748296252841,-430.0,0.00024657,3]
[362445951,1748296252851,-430.0,0.00024657,3]
[362445952,1748296252860,-161.31015823,0.00024657,3]
[362445953,1748296252918,-268.68984177,0.00024657,3]
[362445954,1748296252928,-430.0,0.00024657,3]
[362445955,1748296252939,-108.49862264,0.00024657,3]
[362445956,1748296252952,-489.60137736,0.00024657,3]
[362445957,1748296252962,-430.0,0.00024657,3]
[362445958,1748296252972,-430.0,0.00024657,3]
[362445959,1748296252982,-598.1,0.00024657,3]
[362445960,1748296252991,-430.0,0.00024657,3]
[362445961,1748296253001,-333.48926923,0.00024657,3]
[362445962,1748296253014,-96.51073077,0.00024657,3]
[362445963,1748296253023,-430.0,0.00024657,3]
[362445964,1748296253032,-598.1,0.00024657,3]
[362445965,1748296253042,-530.0,0.00024657,3]
[362445966,1748296253052,-430.0,0.00024657,3]
[362445967,1748296253062,-430.0,0.00024657,3]
[362445968,1748296253072,-430.0,0.00024657,3]
[362445969,1748296253082,-312.73965493,0.00024657,3]
[362445972,1748297130274,-186.6188672,0.0002,2]
[362445973,1748297130296,-228.19723057,0.00020155,2]
[362445974,1748297130318,-300.0,0.00020778,2]
[362445975,1748297130339,-209.31257453,0.00020779,2]
[362445976,1748297130361,-178.32839605,0.00020779,2]
[362445977,1748297130386,-4.25266365,0.00020779,2]
[362445978,1748297228077,-185.0,0.00016438,3]
[362445979,1748297228111,-300.0,0.00020778,2]
[362445980,1748297228137,-49.36688432,0.00020778,2]
[362445981,1748297235136,-250.63311568,0.00020778,2]
[362445982,1748297235159,-495.74733635,0.00020779,2]
[362445983,1748297235182,-68.99753676,0.00020779,2]
[362445984,1748297236085,-408.17798158,0.00020779,2]
[362445985,1748297240091,-22.82448166,0.00020779,2]
[362445986,1748297240115,-500.0,0.00020779,2]
[362445987,1748297240141,-229.88231609,0.00020779,2]
[362445988,1748297246098,-126.07378733,0.00020779,2]
[362445989,1748297246121,-61.76516384,0.00020779,2]
[362446026,1748297432367,-1007.32464201,0.000189,2]
[362446029,1748297432377,-300.0,0.00020779,2]
[362446031,1748297432387,-11525.61711088,0.0002078,2]
[362446077,1748297438540,-337.02880205,0.0002078,2]
[362446372,1748297443519,-7836.48577787,0.0002078,2]
[362446374,1748297443530,-709.4058527,0.00020836,2]
[362446376,1748297443540,-293.24,0.00020888,2]
[362446378,1748297443550,-152.72916445,0.00021101,2]
[362446676,1748297996163,166.587049,0.00013699,2]
[362446678,1748298357123,-1200.0,0.00018768,2]
[362446679,1748298357148,-300.0,0.00018768,2]
[362446680,1748298357170,-3274.85947071,0.00018769,2]
[362446681,1748298425087,-6116.61355019,0.00018769,2]
[362446682,1748298425109,-300.0,0.00018899,2]
[362446683,1748298425132,-300.0,0.00018899,2]
[362446684,1748298425155,-1361.83181536,0.000189,2]
[362446685,1748298425178,-407.49811088,0.00019177,2]
[362446686,1748298425200,-203.74905544,0.00019178,2]
[362446687,1748298425224,-300.0,0.00019767,2]
[362446688,1748298425249,-500.0,0.00019768,2]
[362446689,1748298425274,-500.0,0.00019768,2]
[362446690,1748298425299,-395.932735,0.00019768,2]
[362446691,1748298436087,-104.067265,0.00019768,2]
[362446692,1748298436110,-500.0,0.00019768,2]
[362446693,1748298436132,-341.70178787,0.00019768,2]
[362446694,1748298439123,-158.29821213,0.00019768,2]
[362446695,1748298439147,-445.47143029,0.00019768,2]
[362446696,1748298439178,-500.0,0.00019768,2]
[362446697,1748298439204,-188.93469548,0.00019768,2]
[362446698,1748298439233,-500.0,0.00019768,2]
[362446699,1748298439260,-500.0,0.00019768,2]
[362446700,1748298439285,-233.96674809,0.00019768,2]
[362446701,1748298439312,-202.58000776,0.00019768,2]
[362446702,1748298439336,-500.0,0.00019768,2]
[362446703,1748298439360,-436.99639152,0.00019768,2]
[362446704,1748298439388,-500.0,0.00019768,2]
[362446705,1748298439414,-465.62515602,0.00019768,2]
[362446706,1748298548092,-161.0,0.00016438,3]
[362446707,1748298548115,-300.0,0.00019766,2]
[362446708,1748298548139,-196.09615875,0.00019767,2]
[362446709,1748298548173,-303.90384125,0.00019767,2]
[362446710,1748298548197,-500.0,0.00019767,2]
[362446711,1748298548220,-500.0,0.00019767,2]
[362446712,1748298548243,-410.2792125,0.00019767,2]
[362446713,1748298548266,-428.56114188,0.00019767,2]
[362446714,1748298548289,-500.0,0.00019767,2]
[362446715,1748298548313,-500.0,0.00019767,2]
[362446716,1748298548336,-500.0,0.00019767,2]
[362446717,1748298548360,-500.0,0.00019767,2]
[362446718,1748298548385,-500.0,0.00019767,2]
[362446719,1748298548408,-500.0,0.00019767,2]
[362446720,1748298548431,-500.0,0.00019767,2]
[362446721,1748298548455,-500.0,0.00019767,2]
[362446722,1748298548479,-500.0,0.00019767,2]
[362446723,1748298548503,-500.0,0.00019767,2]
[362446724,1748298548528,-500.0,0.00019767,2]
[362446725,1748298548552,-500.0,0.00019767,2]
[362446726,1748298548575,-500.0,0.00019767,2]
[362446727,1748298548599,-500.0,0.00019767,2]
[362446728,1748298548769,-500.0,0.00019767,2]
[362446729,1748298548827,-500.0,0.00019767,2]
[362446730,1748298548853,-500.0,0.00019767,2]
[362446731,1748298548879,-500.0,0.00019767,2]
[362446732,1748298548902,-500.0,0.00019767,2]
[362446733,1748298548926,-500.0,0.00019767,2]
[362446734,1748298548952,-500.0,0.00019767,2]
[362446735,1748298548976,-500.0,0.00019767,2]
[362446736,1748298549001,-500.0,0.00019767,2]
[362446737,1748298549025,-500.0,0.00019767,2]
[362446738,1748298549049,-500.0,0.00019767,2]
[362446739,1748298549072,-500.0,0.00019767,2]
[362446740,1748298549098,-500.0,0.00019767,2]
[362446741,1748298549124,-500.0,0.00019767,2]
[362446742,1748298549150,-500.0,0.00019767,2]
[362446743,1748298549175,-500.0,0.00019767,2]
[362446744,1748298549201,-500.0,0.00019767,2]
[362446745,1748298549227,-500.0,0.00019767,2]
[362446746,1748298549253,-500.0,0.00019767,2]
[362446747,1748298549279,-500.0,0.00019767,2]
[362446748,1748298549304,-500.0,0.00019767,2]
[362446749,1748298549329,-500.0,0.00019767,2]
[362446750,1748298549356,-500.0,0.00019767,2]
[362446751,1748298549385,-500.0,0.00019767,2]
[362446752,1748298549410,-500.0,0.00019767,2]
[362446753,1748298549434,-500.0,0.00019767,2]
[362446754,1748298549458,-500.0,0.00019767,2]
[362446755,1748298549484,-500.0,0.00019767,2]
[362446756,1748298549509,-500.0,0.00019767,2]
[362446757,1748298549536,-500.0,0.00019767,2]
[362446758,1748298549561,-500.0,0.00019767,2]
[362446759,1748298549583,-500.0,0.00019767,2]
[362446760,1748298549606,-362.39174434,0.00019767,2]
[362446761,1748298549631,-500.0,0.00019767,2]
[362446762,1748298549654,-500.0,0.00019767,2]
[362446763,1748298549677,-500.0,0.00019767,2]
[362446764,1748298549701,-500.0,0.00019767,2]
[362446765,1748298549724,-500.0,0.00019767,2]
[362446766,1748298549748,-500.0,0.00019767,2]
[362446767,1748298549772,-500.0,0.00019767,2]
[362446768,1748298549795,-500.0,0.00019767,2]
[362446769,1748298549818,-500.0,0.00019767,2]
[362446770,1748298549842,-2348.21395251,0.00019768,2]
[362446771,1748298549866,-500.0,0.00019768,2]
[362446772,1748298549890,-500.0,0.00019768,2]
[362446773,1748298549913,-500.0,0.00019768,2]
[362446774,1748298549935,-314.29833805,0.00019768,2]
[362446775,1748298549961,-500.0,0.00019768,2]
[362446776,1748298549986,-500.0,0.00019768,2]
[362446777,1748298550011,-478.81612313,0.00019768,2]
[362446778,1748298550037,-500.0,0.00019768,2]
[362446779,1748298550061,-500.0,0.00019768,2]
[362446780,1748298550085,-500.0,0.00019768,2]
[362446781,1748298550108,-500.0,0.00019768,2]
[362446782,1748298550132,-500.0,0.00019768,2]
[362446783,1748298550156,-500.0,0.00019768,2]
[362446784,1748298550180,-508.04929774,0.00019768,2]
[362446785,1748298550205,-500.0,0.00019768,2]
[362446786,1748298550230,-500.0,0.00019768,2]
[362446787,1748298550255,-3259.29504068,0.00019768,2]
[362446788,1748298550278,-894.64583333,0.00019769,3]
[362446789,1748298550303,-10987.35435505,0.00019769,3]
[362446790,1748298550325,-212.59253735,0.0001977,3]
[362446791,1748298550347,-314.67999324,0.0001977,3]
[362446792,1748298550371,-14078.84239537,0.00019771,2]
[362446793,1748298550697,-10821.15760463,0.00019771,2]
[362446794,1748298550824,-252.528709,0.00019777,2]
[362446795,1748298550860,-487.42380983,0.000199,2]
[362446796,1748298550881,-160.0,0.0002,3]
[362446797,1748298550915,-487.42380962,0.00020072,2]
[362446798,1748298550939,-513.39135108,0.00020213,2]
[362446799,1748298550972,-487.42380962,0.00020245,2]
[362446800,1748298572095,500.0,0.00019767,2]
[362446802,1748298606279,250.45943614,0.00019757,2]
[362446803,1748298609505,151.0,0.00019757,2]
[362446804,1748298622213,907.8878769,0.000189,2]
[362446813,1748298632385,605.2585846,0.000189,2]
[362446827,1748298632729,-420.0,0.00020462,2]
[362446828,1748298632739,-1994.9537271,0.00020475,2]
[362446829,1748298632750,-300.0,0.00020599,2]
[362446830,1748298632759,-824.0,0.00020599,2]
[362446831,1748298632769,-500.0,0.000206,2]
[362446832,1748298632778,-500.0,0.000206,2]
[362446833,1748298632787,-500.0,0.000206,2]
[362446834,1748298632797,-470.56280441,0.000206,2]
[362446835,1748298632807,-500.0,0.000206,2]
[362446836,1748298632816,-608.50255846,0.000206,2]
[362446837,1748298632826,-501.2794407,0.000206,2]
[362446838,1748298632836,-500.0,0.00020657,2]
[362446839,1748298632846,-500.0,0.00020657,2]
[362446840,1748298632855,-500.0,0.00020657,2]
[362446841,1748298632864,-500.0,0.00020657,2]
[362446842,1748298632874,-500.0,0.0002068,2]
[362446843,1748298632883,-500.48583429,0.0002068,2]
[362446844,1748298632896,-500.0,0.0002068,2]
[362446845,1748298632905,-500.0,0.0002068,2]
[362446846,1748298632915,-161.17637946,0.0002068,2]
[362446847,1748298632925,-500.0,0.0002076,2]
[362446848,1748298632934,-155.0,0.00020776,2]
[362446849,1748298632943,-411.514845,0.00020783,2]
[362446850,1748298632952,-500.0,0.00020833,2]
[362446851,1748298632961,-304.61,0.00020979,2]
[362446852,1748298632971,-385.254,0.00021098,2]
[362446853,1748298632980,-302.0,0.00021101,2]
[362446854,1748298632991,-501.52744538,0.00021148,2]
[362446855,1748298633001,-285.56829423,0.00021148,2]
[362446856,1748298633010,-600.0,0.00021164,2]
[362446857,1748298633020,-500.0,0.000212,2]
[362446858,1748298633030,-159.5745281,0.000212,2]
[362446859,1748298633039,-237.01017876,0.000212,2]
[362446860,1748298633080,-762.98982124,0.000212,2]
[362446861,1748298633091,-500.0,0.000212,2]
[362446862,1748298633101,-500.0,0.00021205,2]
[362446863,1748298633110,-1000.0,0.00021205,2]
[362446864,1748298633120,-1000.0,0.00021205,2]
[362446865,1748298633129,-500.0,0.00021227,2]
[362446866,1748298633141,-500.0,0.00021227,2]
[362446867,1748298633150,-500.0,0.00021227,2]
[362446868,1748298633159,-500.0,0.00021227,2]
[362446869,1748298633169,-500.0,0.00021227,2]
[362446870,1748298633178,-265.3938127,0.00021227,2]
[362446871,1748298633188,-1174.10697626,0.00021228,2]
[362446872,1748298633197,-1000.0,0.00021228,2]
[362446873,1748298633207,-1000.0,0.00021228,2]
[362446874,1748298633216,-173.68154185,0.00021272,2]
[362446875,1748298633225,-1000.0,0.00021308,2]
[362446876,1748298633235,-248.26161803,0.00021362,2]
[362446877,1748298633245,-500.0,0.00021371,2]
[362446878,1748298633254,-500.0,0.00021371,2]
[362446879,1748298633264,-500.0,0.00021371,2]
[362446880,1748298633273,-500.0,0.00021371,2]
[362446881,1748298633283,-588.03103326,0.000214,2]
[362446882,1748298633292,-500.85081605,0.000214,2]
[362446883,1748298633302,-500.0,0.000214,2]
[362446884,1748298633311,-500.0,0.000214,2]
[362446885,1748298633322,-500.0,0.000214,2]
[362446886,1748298633332,-500.0,0.000214,2]
[362446887,1748298633342,-595.95659499,0.000214,2]
[362446888,1748298633351,-1000.0,0.00021748,2]
[362446889,1748298633361,-2000.0,0.00021748,2]
[362446890,1748298633370,-907.67132712,0.00021753,2]
[362446891,1748298633380,-1500.0,0.00021753,2]
[362446892,1748298633390,-1500.0,0.00021776,2]
[362446893,1748298633399,-1500.0,0.00021776,2]
[362446894,1748298633409,-329.74251551,0.00021856,2]
[362446895,1748298633418,-3000.0,0.000219,2]
[362446896,1748298633428,-438.68142889,0.000219,6]
[362446897,1748298633438,-3000.0,0.0002191,2]
[362446898,1748298633448,-471.01424625,0.00021919,2]
[362446899,1748298633458,-500.0,0.00021919,2]
[362446900,1748298633467,-1000.0,0.00021919,2]
[362446901,1748298633477,-1000.0,0.00021919,2]
[362446902,1748298633486,-3000.0,0.0002192,2]
[362446903,1748298633495,-500.0,0.00021929,2]
[362446904,1748298633505,-500.0,0.00021929,2]
[362446905,1748298633515,-500.0,0.00021929,2]
[362446906,1748298633524,-420.00883663,0.00021929,2]
[362446907,1748298633533,-305.63450842,0.00021929,2]
[362446908,1748298633544,-500.0,0.00021929,2]
[362446909,1748298633553,-500.0,0.00021929,2]
[362446910,1748298633563,-235.17128619,0.00021929,2]
[362446911,1748298633573,-500.0,0.00021929,2]
[362446912,1748298633583,-500.0,0.00021929,2]
[362446913,1748298633592,-500.0,0.00021929,2]
[362446914,1748298633602,-500.0,0.00021929,2]
[362446915,1748298633614,-3000.0,0.0002193,2]
[362446916,1748298633623,-3000.0,0.0002194,2]
[362446917,1748298633634,-500.0,0.00021948,2]
[362446918,1748298633644,-396.94184363,0.00021948,2]
[362446919,1748298633654,-1000.0,0.00021948,2]
[362446920,1748298633663,-497.2540624,0.00021948,2]
[362446921,1748298633673,-160.0,0.00021949,2]
[362446922,1748298633813,-3000.0,0.0002195,2]
[362446923,1748298633824,-3000.0,0.0002196,2]
[362446924,1748298633834,-3000.0,0.0002197,2]
[362446925,1748298633844,-4732.787166,0.0002198,2]
[362446926,1748298633854,-438.68142865,0.00022003,6]
[362446927,1748298633864,-438.68142865,0.00022107,6]
[362446928,1748298633874,-438.68142865,0.0002221,6]
[362446929,1748298633883,-600.0,0.0002226,2]
[362446930,1748298633895,-1000.0,0.00022296,2]
[362446931,1748298633905,-2000.0,0.00022301,2]
[362446932,1748298633915,-587.0,0.00022309,2]
[362446933,1748298633925,-438.68142865,0.00022314,7]
[362446934,1748298633934,-1500.0,0.00022324,2]
[362446935,1748298633944,-2000.0,0.00022324,2]
[362446936,1748298633954,-420.0,0.00022416,2]
[362446937,1748298633963,-438.68142865,0.00022417,7]
[362446938,1748298633973,-1500.0,0.00022467,2]
[362446939,1748298633983,-1500.0,0.00022467,2]
[362446940,1748298633993,-151.0,0.00022514,2]
[362446941,1748298634003,-151.0,0.00022514,2]
[362446942,1748298634012,-151.0,0.00022514,2]
[362446943,1748298634022,-151.0,0.00022514,2]
[362446944,1748298634032,-151.0,0.00022514,2]
[362446945,1748298634041,-151.0,0.00022514,2]
[362446946,1748298634052,-151.0,0.00022514,2]
[362446947,1748298634068,-151.0,0.00022514,2]
[362446948,1748298634078,-151.0,0.00022514,2]
[362446949,1748298634087,-207.4,0.00022514,2]
[362446950,1748298634098,-151.0,0.00022514,2]
[362446951,1748298634107,-151.0,0.00022514,2]